fUST/lending_fUST_20240321
["ID","MTS","AMOUNT","RATE_DAILY","PERIOD"]
[319771149,1710963039307,-500.0,0.00028493,2]
[319771150,1710963039317,-2248.2,0.00028493,2]
[319771151,1710963039329,-500.0,0.00028493,2]
[319771152,1710963039340,-1953.44,0.00028493,2]
[319771153,1710963039352,-500.0,0.00028493,2]
[319771154,1710963039363,-500.0,0.00028493,2]
[319771155,1710963039375,-500.0,0.00028493,2]
[319771156,1710963039387,-2352.01,0.00028493,2]
[319771157,1710963039399,-500.0,0.00028493,2]
[319771158,1710963039411,-1133.89,0.00028493,2]
[319771159,1710963039423,-1717.55,0.00028493,2]
[319771160,1710963039435,-1584.4,0.00028493,2]
[319771161,1710963039447,-500.0,0.00028622,2]
[319771162,1710963039457,-500.0,0.00028622,2]
[319771163,1710963039467,-500.0,0.00028622,2]
[319771164,1710963039477,-4656.72,0.00028622,2]
[319771165,1710963039487,-500.0,0.00028622,2]
[319771166,1710963039499,-500.0,0.00028622,2]
[319771167,1710963039513,-500.0,0.00028622,2]
[319771168,1710963039525,-153.0,0.0002863,2]
[319771169,1710963039537,-153.0,0.0002863,2]
[319771170,1710963039548,-153.0,0.0002863,2]
[319771171,1710963039559,-166.666666,0.00028679,2]
[319771172,1710963039571,-500.0,0.00028767,2]
[319771173,1710963039582,-2248.2,0.00028767,2]
[319771174,1710963039593,-500.0,0.00028767,2]
[319771175,1710963039604,-1953.44,0.00028767,2]
[319771176,1710963039614,-500.0,0.00028767,2]
[319771177,1710963039625,-500.0,0.00028767,2]
[319771178,1710963039635,-500.0,0.00028767,2]
[319771179,1710963039646,-196.84325893,0.00028767,2]
[319771180,1710963039657,-2352.01,0.00028767,2]
[319771181,1710963039668,-500.0,0.00028767,2]
[319771182,1710963039678,-1133.89,0.00028767,2]
[319771183,1710963039688,-1717.55,0.00028767,2]
[319771184,1710963039699,-1584.4,0.00028767,2]
[319771185,1710963039709,-155.0954642,0.00028896,2]
[319771186,1710963039720,-1042.57594877,0.00028896,2]
[319771187,1710963039730,-500.0,0.00028896,2]
[319771188,1710963039741,-500.0,0.00028896,2]
[319771189,1710963039752,-500.0,0.00028896,2]
[319771191,1710963039765,-4656.72,0.00028896,2]
[319771192,1710963039775,-500.0,0.00028896,2]
[319771193,1710963039786,-500.0,0.00028896,2]
[319771194,1710963039797,-500.0,0.00028896,2]
[319771196,1710963039807,-500.0,0.00029041,2]
[319771198,1710963039818,-2248.2,0.00029041,2]
[319771200,1710963039829,-500.0,0.00029041,2]
[319771203,1710963039840,-1953.44,0.00029041,2]
[319771205,1710963039851,-500.0,0.00029041,2]
[319771207,1710963039862,-500.0,0.00029041,2]
[319771209,1710963039873,-500.0,0.00029041,2]
[319771211,1710963039883,-2352.01,0.00029041,2]
[319771213,1710963039894,-500.0,0.00029041,2]
[319771215,1710963039904,-1133.89,0.00029041,2]
[319771217,1710963039914,-1717.55,0.00029041,2]
[319771219,1710963039925,-1584.4,0.00029041,2]
[319771221,1710963039936,-500.0,0.0002917,2]
[319771223,1710963039946,-500.0,0.0002917,2]
[319771224,1710963039957,-338.25265938,0.0002917,2]
[319771225,1710963039967,-4656.72,0.0002917,2]
[319771226,1710963039977,-500.0,0.0002917,2]
[319771227,1710963039988,-500.0,0.0002917,2]
[319771228,1710963039998,-334.11770452,0.0002917,2]
[319771229,1710963040009,-500.0,0.00029315,2]
[319771230,1710963040021,-2248.2,0.00029315,2]
[319771231,1710963040031,-152.79504228,0.00029315,2]
[319771232,1710963040041,-1953.44,0.00029315,2]
[319771233,1710963040052,-500.0,0.00029315,2]
[319771234,1710963040062,-500.0,0.00029315,2]
[319771235,1710963040073,-500.0,0.00029315,2]
[319771236,1710963040083,-2352.01,0.00029315,2]
[319771237,1710963040094,-500.0,0.00029315,2]
[319771238,1710963040104,-1133.89,0.00029315,2]
[319771239,1710963040118,-1717.55,0.00029315,2]
[319771240,1710963040129,-1584.4,0.00029315,2]
[319771241,1710963040139,-166.666666,0.00029321,2]
[319771242,1710963040149,-2215.37408187,0.00029357,2]
[319771243,1710963040162,-255.09466364,0.00029444,2]
[319771244,1710963040173,-500.0,0.00029444,2]
[319771245,1710963040183,-4656.72,0.00029444,2]
[319771246,1710963040197,-378.32940691,0.00029444,2]
[319771247,1710963040208,-500.0,0.00029444,2]
[319771248,1710963040218,-153.0,0.00029452,2]
[319771249,1710963040228,-547.33404818,0.00029589,2]
[319771252,1710963040341,-2248.2,0.00029589,2]
[319771254,1710963040382,-1953.44,0.00029589,2]
[319771256,1710963040391,-495.59609124,0.00029589,2]
[319771258,1710963040401,-500.0,0.00029589,2]
[319771260,1710963040410,-500.0,0.00029589,2]
[319771262,1710963040419,-2352.01,0.00029589,2]
[319771264,1710963040428,-500.0,0.00029589,2]
[319771266,1710963040437,-1133.89,0.00029589,2]
[319771268,1710963040446,-1717.55,0.00029589,2]
[319771270,1710963040455,-1584.4,0.00029589,2]
[319771272,1710963040465,-1000.0,0.00029614,2]
[319771274,1710963040473,-1000.0,0.00029615,2]
[319771276,1710963040482,-500.0,0.00029628,2]
[319771278,1710963040491,-1000.0,0.00029633,2]
[319771280,1710963040500,-1000.0,0.00029634,2]
[319771282,1710963040512,-1000.0,0.00029636,2]
[319771284,1710963040521,-1000.0,0.00029686,2]
[319771286,1710963040530,-500.0,0.00029718,2]
[319771288,1710963040539,-4656.72,0.00029718,2]
[319771290,1710963040548,-500.0,0.00029718,2]
[319771292,1710963040557,-683.96895006,0.00029722,2]
[319771294,1710963040566,-1000.0,0.00029753,2]
[319771296,1710963040576,-1000.0,0.0002976,2]
[319771298,1710963040584,-1000.0,0.00029809,2]
[319771300,1710963040593,-1000.0,0.00029815,2]
[319771302,1710963040602,-150.0,0.00029816,2]
[319771304,1710963040611,-1000.0,0.0002983,2]
[319771306,1710963040620,-241.981717,0.00029837,2]
[319771308,1710963040629,-1000.0,0.00029842,2]
[319771310,1710963040638,-1000.0,0.00029844,2]
[319771311,1710963040648,-1000.0,0.00029855,2]
[319771313,1710963040657,-1000.0,0.00029856,2]
[319771315,1710963040667,-2248.2,0.00029863,2]
[319771317,1710963040676,-1953.44,0.00029863,2]
[319771319,1710963040685,-459.32921279,0.00029863,2]
[319771321,1710963040694,-500.0,0.00029863,2]
[319771323,1710963040703,-2352.01,0.00029863,2]
[319771325,1710963040712,-427.24908852,0.00029863,2]
[319771327,1710963040722,-1133.89,0.00029863,2]
[319771329,1710963040731,-1717.55,0.00029863,2]
[319771331,1710963040740,-1584.4,0.00029863,2]
[319771333,1710963040749,-7748.43606094,0.0002988,2]
[319771335,1710963040761,-166.666666,0.00029962,2]
[319771337,1710963040770,-1440.0,0.0002999,2]
[319771339,1710963040779,-500.0,0.00029992,2]
[319771341,1710963040788,-4656.72,0.00029992,2]
[319771343,1710963040797,-500.0,0.00029992,2]
[319771345,1710963040807,-1667.0508295,0.0003,4]
[319771347,1710963040816,-641.25091115,0.0003,4]
[319771349,1710963040825,-597.80075257,0.0003,2]
[319771351,1710963040836,-10000.0,0.0003,3]
[319771353,1710963040847,-381.0,0.0003,2]
[319771355,1710963040856,-206.88588851,0.0003009,2]
[319771357,1710963040865,-300.0,0.00030111,2]
[319771360,1710963040875,-1000.0,0.00030115,2]
[319771363,1710963040884,-2248.2,0.00030136,2]
[319771366,1710963040894,-1953.44,0.00030136,2]
[319771369,1710963040903,-506.51,0.00030136,2]
[319771372,1710963040912,-500.0,0.00030136,2]
[319771375,1710963040922,-2352.01,0.00030136,2]
[319771378,1710963040931,-1133.89,0.00030136,2]
[319771381,1710963040939,-1717.55,0.00030136,2]
[319771384,1710963040948,-1584.4,0.00030136,2]
[319771386,1710963040958,-506.51,0.00030191,2]
[319771389,1710963040967,-2000.0,0.000302,30]
[319771392,1710963040976,-2000.0,0.0003021,30]
[319771394,1710963040985,-2000.0,0.0003022,30]
[319771397,1710963040995,-2000.0,0.0003023,30]
[319771399,1710963041005,-2000.0,0.0003024,30]
[319771402,1710963041016,-506.51,0.00030246,2]
[319771404,1710963041025,-2000.0,0.0003025,30]
[319771406,1710963041034,-2000.0,0.0003026,30]
[319771408,1710963041043,-500.0,0.00030266,2]
[319771410,1710963041053,-4656.72,0.00030266,2]
[319771412,1710963041063,-500.0,0.00030266,2]
[319771414,1710963041072,-2000.0,0.0003027,30]
[319771416,1710963041082,-500.0,0.00030273,2]
[319771419,1710963041092,-2000.0,0.0003028,30]
[319771420,1710963041102,-2000.0,0.0003029,30]
[319771422,1710963041114,-35897.0,0.00030295,30]
[319771424,1710963041123,-2000.0,0.000303,30]
[319771426,1710963041132,-506.51,0.00030301,2]
[319771428,1710963041142,-2000.0,0.0003031,30]
[319771430,1710963041150,-2000.0,0.0003032,30]
[319771432,1710963041160,-2000.0,0.0003033,30]
[319771434,1710963041169,-2472.019474,0.0003034,30]
[319771436,1710963041178,-506.51,0.00030356,2]
[319771438,1710963041188,-800.0,0.000304,3]
[319771440,1710963041198,-800.0,0.000304,3]
[319771442,1710963041208,-2248.2,0.0003041,2]
[319771445,1710963041217,-1953.44,0.0003041,2]
[319771446,1710963041226,-506.51,0.0003041,2]
[319771448,1710963041234,-510.92422588,0.0003041,2]
[319771450,1710963041243,-2352.01,0.0003041,2]
[319771452,1710963041252,-1133.89,0.0003041,2]
[319771454,1710963041262,-1717.55,0.0003041,2]
[319771456,1710963041271,-1584.4,0.0003041,2]
[319771458,1710963041281,-506.51,0.00030465,2]
[319771460,1710963041290,-506.51,0.0003052,2]
[319771462,1710963041299,-521.44418871,0.0003054,2]
[319771464,1710963041308,-4656.72,0.0003054,2]
[319771467,1710963041325,-453.91855697,0.0003054,2]
[319771470,1710963041339,-7486.79212169,0.0003056,2]
[319771472,1710963041348,-506.51,0.00030575,2]
[319771474,1710963041358,-166.666666,0.00030603,2]
[319771476,1710963041368,-506.51,0.0003063,2]
[319771478,1710963041378,-2248.2,0.00030684,2]
[319771480,1710963041387,-1953.44,0.00030684,2]
[319771482,1710963041397,-506.51,0.00030684,2]
[319771484,1710963041407,-2352.01,0.00030684,2]
[319771486,1710963041417,-1133.89,0.00030684,2]
[319771488,1710963041426,-1717.55,0.00030684,2]
[319771490,1710963041436,-1584.4,0.00030684,2]
[319771492,1710963041445,-506.51,0.00030739,2]
[319771494,1710963041454,-506.51,0.00030794,2]
[319771496,1710963041464,-4656.72,0.00030814,2]
[319771498,1710963041473,-150.0,0.00030816,2]
[319771500,1710963041483,-506.51,0.00030849,2]
[319771502,1710963041493,-10000.0,0.000309,2]
[319771504,1710963041502,-506.51,0.00030904,2]
[319771506,1710963041513,-2248.26794941,0.00030958,2]
[319771508,1710963041522,-1953.58239588,0.00030958,2]
[319771510,1710963041531,-506.51,0.00030958,2]
[319771512,1710963041541,-2352.20141045,0.00030958,2]
[319771514,1710963041550,-1134.10612482,0.00030958,2]
[319771516,1710963041559,-1717.55317309,0.00030958,2]
[319771518,1710963041571,-1584.59541919,0.00030958,2]
[319771520,1710963041582,-3025.503005,0.00031,2]
[319771522,1710963041591,-1500.0,0.00031,2]
[319771524,1710963041600,-1500.0,0.00031,2]
[319771526,1710963041610,-1500.0,0.00031,2]
[319771528,1710963041619,-1500.0,0.00031,2]
[319771530,1710963041629,-1500.0,0.00031,2]
[319771532,1710963041639,-1500.0,0.00031,2]
[319771534,1710963041648,-1500.0,0.00031,2]
[319771537,1710963041658,-1500.0,0.00031,2]
[319771539,1710963041672,-1405.33,0.00031,2]
[319771541,1710963041682,-500.0,0.00031,2]
[319771543,1710963041692,-506.51,0.00031013,2]
[319771545,1710963041701,-506.51,0.00031068,2]
[319771547,1710963041711,-4656.89514831,0.00031088,2]
[319771549,1710963041721,-506.51,0.00031123,2]
[319771551,1710963041731,-381.8787319,0.00031141,4]
[319771553,1710963041740,-506.51,0.00031178,2]
[319771555,1710963041749,-506.51,0.00031232,2]
[319771556,1710963041759,-8154.87079303,0.00031247,4]
[319771557,1710963041769,-506.51,0.00031287,2]
[319771558,1710963041779,-506.51,0.00031342,2]
[319771559,1710963041789,-506.69905061,0.00031397,2]
[319771560,1710963041799,-2000.0,0.00031725,2]
[319771561,1710963041812,-150.0,0.00031816,2]
[319771562,1710963041822,-1500.0,0.00032,2]
[319771563,1710963041832,-5942.92066565,0.00032,2]
[319771564,1710963041842,-16945.55106711,0.00032057,5]
[319771565,1710963041851,-2000.0,0.000323,5]
[319771566,1710963041861,-2000.0,0.000323,5]
[319771567,1710963041871,-153.0,0.0003274,2]
[319771568,1710963041881,-153.0,0.0003274,2]
[319771569,1710963041890,-153.0,0.0003274,2]
[319771570,1710963041901,-150.0,0.00032816,2]
[319771571,1710963041911,-5073.74409029,0.00033,30]
[319771572,1710963041920,-306.0,0.00033067,2]
[319771573,1710963041930,-306.0000001,0.0003307,2]
[319771574,1710963041939,-153.0,0.0003307,2]
[319771575,1710963041949,-2000.0,0.000333,6]
[319771576,1710963041958,-2000.0,0.000333,6]
[319771577,1710963041968,-313.9870842,0.00033481,2]
[319771578,1710963041979,-306.8604924,0.00033481,2]
[319771579,1710963041989,-250.0,0.00033537,2]
[319771580,1710963041999,-401.4166254,0.00033776,2]
[319771581,1710963042008,-431.220318,0.00033892,2]
[319771582,1710963042020,-201.4939044,0.00033892,2]
[319771583,1710963042030,-153.0,0.00033892,2]
[319771584,1710963042041,-201.4939044,0.00033892,2]
[319771585,1710963042050,-201.4939044,0.00033892,2]
[319771586,1710963042060,-153.0,0.00033892,2]
[319771587,1710963042069,-201.4939044,0.00033892,2]
[319771589,1710963042079,-153.0,0.00033892,2]
[319771591,1710963042089,-201.4939044,0.00033892,2]
[319771594,1710963042100,-153.0,0.00033892,2]
[319771596,1710963042112,-153.0,0.00033892,2]
[319771597,1710963042126,-201.4939044,0.00033892,2]
[319771599,1710963042135,-201.4939044,0.00033892,2]
[319771601,1710963042145,-153.0,0.00033892,2]
[319771603,1710963042156,-153.0,0.00033892,2]
[319771606,1710963042166,-153.0,0.00033892,2]
[319771607,1710963042176,-174.76,0.00033999,2]
[319771610,1710963042187,-174.76,0.00033999,2]
[319771612,1710963042196,-174.76,0.00033999,2]
[319771614,1710963042206,-174.76,0.00033999,2]
[319771616,1710963042216,-174.76,0.00033999,2]
[319771618,1710963042225,-10000.0,0.00034,2]
[319771619,1710963042234,-4334.24297772,0.00034102,2]
[319771621,1710963042244,-1000.0,0.00034115,10]
[319771624,1710963042254,-250.0,0.00034537,2]
[319771625,1710963042265,-1000.0,0.00034663,10]
[319771627,1710963042275,-153.0,0.00034714,2]
[319771630,1710963042286,-1260.5027548,0.00034728,12]
[319771632,1710963042296,-2000.0,0.00034758,2]
[319771634,1710963042307,-1850.0,0.000348,90]
[319771636,1710963042318,-154.87609912,0.00035,4]
[319771638,1710963042328,-175.05688493,0.00035,30]
[319771640,1710963042338,-1000.0,0.00035,2]
[319771642,1710963042347,-5516.75310348,0.00035,2]
[319771644,1710963042357,-3745.7482731,0.00035,2]
[319771646,1710963042366,-10198.45741588,0.00035,2]
[319771648,1710963042375,-562.77614716,0.00035,2]
[319771650,1710963042385,-140986.66963938,0.00035,10]
[319771651,1710963042394,-16084.34781946,0.00035,10]
[319771653,1710963042404,-7244.65439842,0.00035,7]
[319771655,1710963042412,-150.0,0.00035,2]
[319771657,1710963042422,-1000.0,0.00035,2]
[319771659,1710963042433,-201.4939044,0.00035167,2]
[319771661,1710963042442,-201.4939044,0.00035167,2]
[319771663,1710963042451,-201.4939044,0.00035167,2]
[319771665,1710963042461,-200.1845849,0.00035167,2]
[319771667,1710963042470,-153.0,0.00035167,2]
[319771669,1710963042480,-1000.0,0.00035211,10]
[319771671,1710963042490,-800.0,0.000353,9]
[319771673,1710963042500,-350.8126133,0.00035314,2]
[319771675,1710963042512,-153.0,0.00035314,2]
[319771677,1710963042521,-153.0,0.00035314,2]
[319771679,1710963042531,-153.0,0.00035314,2]
[319771681,1710963042542,-250.0,0.00035537,2]
[319771683,1710963042553,-283.5776958,0.00035616,3]
[319771685,1710963042563,-6250.0,0.00035616,120]
[319771687,1710963042572,-1000.0,0.00035759,10]
[319771689,1710963042582,-114913.18830501,0.00036,7]
[319771691,1710963042592,-1000.0,0.00036,36]
[319771693,1710963042603,-153.0,0.00036136,2]
[319771695,1710963042612,-153.0,0.00036136,2]
[319771697,1710963042623,-150.26173386,0.00036172,120]
[319771699,1710963042632,-254.57927988,0.0003624,2]
[319771701,1710963042643,-1000.0,0.00036307,10]
[319771703,1710963042652,-250.0,0.00036537,2]
[319771705,1710963042662,-306.9174959,0.00036793,2]
[319771707,1710963042672,-153.0,0.00036793,2]
[319771709,1710963042684,-153.0,0.00036793,2]
[319771711,1710963042694,-153.0,0.00036793,2]
[319771713,1710963042705,-153.0,0.00036793,2]
[319771715,1710963042717,-153.0,0.00036793,2]
[319771717,1710963042727,-153.0,0.00036793,2]
[319771719,1710963042737,-153.0,0.00036793,2]
[319771721,1710963042747,-153.0,0.00036793,2]
[319771723,1710963042756,-153.0,0.00036793,2]
[319771725,1710963042769,-398.4859761,0.00036793,2]
[319771727,1710963042778,-2000.0,0.0003691,2]
[319771729,1710963042789,-1000.0,0.00037403,10]
[319771732,1710963042799,-238.14856072,0.00037537,2]
[319771734,1710963042809,-1000.0,0.00038,38]
[319771736,1710963042819,-1000.0,0.00038499,10]
[319771739,1710963042829,-168.767992,0.00038789,2]
[319771742,1710963042839,-382.489352,0.00038789,2]
[319771744,1710963042849,-372.239742,0.00038789,2]
[319771746,1710963042859,-200.431842,0.00038789,2]
[319771750,1710963042868,-195.426485,0.00038789,2]
[319771751,1710963042879,-176.434762,0.00038789,2]
[319771753,1710963042888,-165.618181,0.00038789,2]
[319771755,1710963042899,-150.5,0.0003897,35]
[319771757,1710963042909,-150.5,0.0003898,35]
[319771759,1710963042919,-150.5,0.0003899,35]
[319771762,1710963042929,-1401.13865782,0.00038997,4]
[319771763,1710963042939,-317.79991253,0.00039,30]
[319771766,1710963042949,-2457983.95301279,0.00039,30]
[319771767,1710963042959,-153.0,0.00039259,2]
[319771769,1710963042968,-153.0,0.00039259,2]
[319771771,1710963042978,-153.0,0.00039259,2]
[319771773,1710963042988,-153.0,0.00039259,2]
[319771775,1710963042998,-306.0,0.00039259,2]
[319771778,1710963043008,-382.489352,0.00039274,2]
[319771780,1710963043020,-372.239742,0.00039274,2]
[319771783,1710963043030,-176.434762,0.00039274,2]
[319771786,1710963043041,-195.426485,0.00039274,2]
[319771788,1710963043051,-25060.66869493,0.000393,2]
[319771790,1710963043061,-1000.0,0.000394,120]
[319771792,1710963043070,-1000.0,0.00039595,10]
[319771794,1710963043080,-382.489352,0.00039758,2]
[319771796,1710963043089,-372.239742,0.00039758,2]
[319771798,1710963043099,-176.434762,0.00039758,2]
[319771800,1710963043109,-195.426485,0.00039758,2]
[319771801,1710963043123,-43550.0,0.000398,2]
[319771803,1710963043132,-154.84515485,0.0004,4]
[319771805,1710963043142,-154.84515485,0.0004,4]
[319771808,1710963043152,-3015.19303272,0.0004,15]
[319771810,1710963043162,-4770.56339609,0.0004,2]
[319771812,1710963043172,-1719.443273,0.0004,120]
[319771814,1710963043182,-3875.78,0.0004,2]
[319771816,1710963043192,-1000.0,0.0004,2]
[319771828,1710963043299,-20000.0,0.0004,30]
[319771831,1710963043320,-554.32306707,0.0004,30]
[319771833,1710963043329,-67211.0,0.0004,2]
[319771834,1710963043338,-8640.75767513,0.0004,2]
[319771837,1710963043349,-38885.80592623,0.0004,2]
[319771839,1710963043358,-500.1469407,0.0004,30]
[319771840,1710963043367,-2000.0,0.0004,30]
[319771842,1710963043377,-419.72,0.0004,2]
[319771844,1710963043386,-3000.0,0.0004,30]
[319771846,1710963043396,-999.0,0.0004,30]
[319771849,1710963043406,-8492.07612244,0.0004,120]
[319771850,1710963043416,-29999.999999,0.0004,2]
[319771853,1710963043425,-500.0,0.00040025,120]
[319771854,1710963043435,-500.0,0.00040025,120]
[319771857,1710963043444,-500.0,0.00040025,120]
[319771858,1710963043453,-500.0,0.00040025,120]
[319771860,1710963043462,-500.0,0.00040025,120]
[319771863,1710963043472,-500.0,0.00040025,120]
[319771865,1710963043482,-500.0,0.00040025,120]
[319771867,1710963043491,-500.0,0.00040025,120]
[319771869,1710963043501,-500.0,0.00040025,120]
[319771871,1710963043512,-500.0,0.00040025,120]
[319771873,1710963043521,-500.0,0.00040025,120]
[319771875,1710963043530,-303.6,0.00040025,120]
[319771877,1710963043539,-423.23,0.00040025,120]
[319771879,1710963043548,-500.0,0.00040025,120]
[319771881,1710963043558,-500.0,0.00040025,120]
[319771883,1710963043568,-506.63,0.00040025,120]
[319771885,1710963043577,-500.0,0.00040025,120]
[319771887,1710963043587,-500.0,0.00040025,120]
[319771889,1710963043597,-536.34,0.00040025,120]
[319771891,1710963043606,-500.0,0.00040025,120]
[319771893,1710963043616,-500.0,0.00040025,120]
[319771895,1710963043625,-500.0,0.00040025,120]
[319771897,1710963043635,-500.0,0.00040025,120]
[319771900,1710963043644,-500.0,0.00040025,120]
[319771903,1710963043653,-500.0,0.00040025,120]
[319771905,1710963043665,-500.0,0.00040025,120]
[319771907,1710963043675,-500.0,0.00040025,120]
[319771909,1710963043684,-500.0,0.00040025,120]
[319771911,1710963043693,-500.0,0.00040025,120]
[319771913,1710963043702,-500.0,0.00040025,120]
[319771915,1710963043711,-602.02,0.00040025,120]
[319771917,1710963043721,-500.0,0.00040025,120]
[319771919,1710963043730,-500.0,0.00040025,120]
[319771921,1710963043739,-500.0,0.00040025,120]
[319771923,1710963043748,-500.0,0.00040025,120]
[319771925,1710963043758,-500.0,0.00040025,120]
[319771926,1710963043768,-500.0,0.00040025,120]
[319771928,1710963043777,-500.0,0.00040025,120]
[319771930,1710963043786,-500.0,0.00040025,120]
[319771932,1710963043795,-500.0,0.00040025,120]
[319771934,1710963043804,-500.0,0.00040025,120]
[319771936,1710963043814,-500.0,0.00040025,120]
[319771938,1710963043824,-500.0,0.00040025,120]
[319771941,1710963043833,-500.0,0.00040025,120]
[319771942,1710963043842,-500.0,0.00040025,120]
[319771944,1710963043851,-500.0,0.00040025,120]
[319771946,1710963043861,-500.0,0.00040025,120]
[319771948,1710963043870,-500.0,0.00040025,120]
[319771950,1710963043879,-500.0,0.00040025,120]
[319771952,1710963043889,-500.0,0.00040025,120]
[319771954,1710963043898,-500.0,0.00040025,120]
[319771956,1710963043908,-500.0,0.00040025,120]
[319771958,1710963043917,-500.0,0.00040025,120]
[319771960,1710963043926,-500.0,0.00040025,120]
[319771962,1710963043936,-500.0,0.00040025,120]
[319771964,1710963043945,-500.0,0.00040025,120]
[319771966,1710963043955,-524.75,0.00040025,120]
[319771969,1710963043965,-500.0,0.00040025,120]
[319771971,1710963043975,-500.0,0.00040025,120]
[319771973,1710963043984,-500.0,0.00040025,120]
[319771974,1710963043993,-397.65,0.00040025,120]
[319771976,1710963044003,-500.0,0.00040025,120]
[319771978,1710963044012,-500.0,0.00040025,120]
[319771980,1710963044021,-500.0,0.00040025,120]
[319771982,1710963044029,-500.0,0.00040025,120]
[319771984,1710963044039,-500.0,0.00040025,120]
[319771986,1710963044048,-500.0,0.00040025,120]
[319771988,1710963044057,-500.0,0.00040025,120]
[319771990,1710963044067,-500.0,0.00040025,120]
[319771992,1710963044076,-500.0,0.00040025,120]
[319771994,1710963044085,-500.0,0.00040025,120]
[319771996,1710963044094,-2866.08209058,0.0004008,90]
[319771998,1710963044103,-201.4939044,0.00040091,2]
[319772000,1710963044114,-153.0,0.00040091,2]
[319772002,1710963044124,-201.4939044,0.00040091,2]
[319772004,1710963044133,-201.4939044,0.00040091,2]
[319772006,1710963044142,-201.4939044,0.00040091,2]
[319772008,1710963044151,-306.0,0.00040091,2]
[319772010,1710963044162,-153.0,0.00040091,2]
[319772012,1710963044171,-153.0,0.00040091,2]
[319772015,1710963044181,-153.0,0.00040091,2]
[319772016,1710963044190,-2000.0,0.000401,30]
[319772019,1710963044201,-2486.08818371,0.0004013,2]
[319772021,1710963044210,-199.67415575,0.00040177,2]
[319772022,1710963044219,-2000.0,0.000402,30]
[319772024,1710963044228,-382.489352,0.00040243,2]
[319772026,1710963044238,-372.239742,0.00040243,2]
[319772028,1710963044247,-176.434762,0.00040243,2]
[319772030,1710963044256,-195.426485,0.00040243,2]
[319772032,1710963044267,-150.0,0.000403,15]
[319772034,1710963044276,-2000.0,0.000403,30]
[319772036,1710963044285,-2000.0,0.000404,30]
[319772038,1710963044295,-2000.0,0.000405,14]
[319772040,1710963044304,-2000.0,0.000405,14]
[319772042,1710963044313,-4000.0,0.000405,14]
[319772044,1710963044323,-2000.0,0.000405,14]
[319772046,1710963044332,-2000.0,0.000405,14]
[319772048,1710963044341,-4000.0,0.000405,14]
[319772050,1710963044351,-4000.0,0.000405,14]
[319772052,1710963044360,-1623.77697,0.000405,14]
[319772054,1710963044368,-2000.0,0.000405,30]
[319772056,1710963044378,-2500.0,0.000405,30]
[319772058,1710963044387,-7540.85,0.000405,120]
[319772060,1710963044396,-2000.0,0.000406,30]
[319772062,1710963044404,-4445.99778026,0.000406,14]
[319772064,1710963044415,-300.0,0.000406,15]
[319772066,1710963044424,-2000.0,0.000406,28]
[319772068,1710963044433,-2000.0,0.0004061,28]
[319772070,1710963044442,-2000.0,0.0004062,29]
[319772072,1710963044451,-154.99284498,0.00040624,4]
[319772074,1710963044461,-155.04999768,0.00040624,4]
[319772076,1710963044470,-154.86062544,0.00040624,4]
[319772078,1710963044479,-2000.0,0.0004063,29]
[319772080,1710963044488,-2000.0,0.0004064,29]
[319772082,1710963044498,-2000.0,0.0004065,29]